Cogmind - Beta 15 @@@ ROGUE MODE // 2025.05.29 @ 04:27:16 Player: Cereal Killer Result: Destroyed by FX-2JY(R) with Subdweller Machine Gun Performance ------------- Evolutions (0) 0 Regions Visited (2) 400 Robots Destroyed (6) 30 Value Destroyed (240) 240 Prototype IDs (11) 220 Alien Tech Used (0) 0 Bonus (-4) -4 TOTAL SCORE: 886 Bonus ------- Friendly Fire -4 Cogmind --------- Core Integrity 0/250 Matter 268/300 Energy 48/100 System Corruption 0% Temperature Cool (0) Movement Core (50) Location -10/Subcaves Parts ------- > --- POWER (1) -------- (None) > --- PROPULSION (2) --- (None) > --- UTILITY (2) ------ (None) > --- WEAPON (2) ------- (None) > --- INVENTORY (5) ---- Scrap Shield Tower Shield Subdweller Machine Gun Peak State ------------ > --- POWER ------------ Makeshift Power Source > --- PROPULSION ------- Light Treads Light Treads > --- UTILITY ---------- Small Storage Unit > --- WEAPON ----------- Medium Laser Subdweller Machine Gun > --- INVENTORY -------- Makeshift Leg Scrap Shield Tower Shield Flamer Flamer [Rating: 13] Favorites ----------- Power Ion Engine Engine Ion Engine Propulsion Light Treads Treads Light Treads Utility Small Storage Unit Storage Small Storage Unit Weapon Medium Laser Energy Gun Medium Laser Energy Cannon Subdweller Beam Cannon Ballistic Gun Assault Rifle Launcher Grenade Launcher Special Weapon Flamer Build | -11 -10 -10 ------- Run | Yrd Mat Sub Slots Evolved . | . . . Power . | . . . Propulsion . | . . . Utility . | . . . Weapon . | . . . Parts Attached 14 | 6 . 8 Power 3 | 1 . 2 Engine 3 | 1 . 2 Core . | . . . Reactor . | . . . Propulsion 2 | 2 . . Treads 2 | 2 . . Leg . | . . . Wheel . | . . . Hover . | . . . Flight . | . . . Utility 1 | 1 . . Device . | . . . Storage 1 | 1 . . Processor . | . . . Hackware . | . . . Protection . | . . . Artifact . | . . . Weapon 8 | 2 . 6 Energy Gun 2 | 1 . 1 Energy Cannon 1 | . . 1 Ballistic Gun 2 | 1 . 1 Ballistic Cannon . | . . . Launcher 1 | . . 1 Special Weapon 2 | . . 2 Impact Weapon . | . . . Slashing Weapon . | . . . Piercing Weapon . | . . . Special Melee Weapon . | . . . Unidentified Prototypes . | . . . Parts Lost 9 | . . 9 Power 3 | . . 3 Propulsion 1 | . . 1 Utility . | . . . Weapon 5 | . . 5 Highest Loss Streak 6 | . . 6 To Critical Strikes 1 | . . 1 Average Backups 6 | 1 4 7 Power 1 | . 1 1 Propulsion 2 | . 2 2 Utility . | . . . Weapon 2 | . 1 3 Tool/Special . | . . . Unused Backups 9 | . . 9 Power 2 | . . 2 Propulsion 3 | . . 3 Utility 2 | . . 2 Weapon 2 | . . 2 Tool/Special . | . . . Average Slot Usage (%) 84 | . 85 84 Engine 13 | . 14 13 Treads 28 | . 28 28 Storage 14 | . 14 14 Energy Gun 10 | . 14 10 Energy Cannon 2 | . . 3 Ballistic Gun 9 | . 14 9 Launcher 4 | . . 4 Peak Build Rating 13 | 6 6 13 Average Rating 7 | 4 6 8 On Entrance 4 | . 6 6 Naked Turns 1 | . . 1 Heaviest Build 21 | 14 14 21 Greatest Support 40 | 40 40 40 Greatest Overweight (x) 4 | 4 . . Average Overweight (x) . | . . . Largest Inventory Capacity 8 | 8 8 8 Average Capacity 7 | 7 8 7 Most Carried 8 | 4 5 8 Average Carried 7 | 1 4 7 Final Capacity 8 | 8 8 5 Final Carried 5 | 4 5 5 Class Distribution -------------------- 100% | Mutant Dominant Class ---------------- Mutant | -10/Materials Mutant | -10/Subcaves Resources | -11 -10 -10 ----------- Run | Yrd Mat Sub Matter Collected 531 | 242 . 289 Remotely . | . . . Salvage Created 266 | . . 266 Parts 15 | . . 15 Haulers Intercepted . | . . . Recyclers Shooed . | . . . Parts Field Recycled . | . . . Retrieved Matter . | . . . Parts Self-Destructed . | . . . Prevented . | . . . Kills | -11 -10 -10 ------- Run | Yrd Mat Sub Combat Hostiles Destroyed 6 | . . 6 Guns 3 | . . 3 Cannons 2 | . . 2 AOE 1 | . . 1 Classes Destroyed 2 | . . 2 Artisan 1 | . . 1 Subdweller 6 | . . 6 Best Kill Streak 2 | . . 2 Combat Bots Only 2 | . . 2 Max Kills in Single Turn 1 | . . 1 Gunslinging . | . . . Exploded 1 | . . 1 Melee . | . . . Uniques/NPCs Destroyed . | . . . Combat | -11 -10 -10 -------- Run | Yrd Mat Sub Hostile Shots Fired 62 | . . 62 Missed 17 | . . 17 Hits 45 | . . 45 Projectile 45 | . . 45 Critical Strikes 3 | . . 3 Damage Taken 1082 | . . 1082 Core 266 | . . 266 Absorbed by Shields . | . . . Core Remaining (%) 100 | 100 . . Volleys Fired 84 | . 6 78 Largest 2 | . 2 2 Hottest 200 | . 70 200 Shots Fired 116 | . 12 104 Gun 69 | . 12 57 Cannon 27 | . . 27 Launcher 15 | . . 15 Special 5 | . . 5 Kinetic 32 | . 6 26 Thermal 69 | . 6 63 Explosive 15 | . . 15 Electromagnetic . | . . . Robot Hit Streak 20 | . 3 20 Robot Miss Streak 3 | . 2 3 Penetration Max . | . . . Secondary Targets . | . . . Shots Hit Robots 49 | . 8 41 Core Hits 13 | . 2 11 Critical Kills . | . . . Critical Parts Destroyed . | . . . Critical Strikes 4 | . 1 3 Burn 4 | . 1 3 Melee Attacks . | . . . Impact . | . . . Slashing . | . . . Piercing . | . . . Sneak Attacks . | . . . Combat Hostiles . | . . . Follow-up Attacks . | . . . Damage Inflicted 912 | . 96 816 Guns 580 | . 96 484 Cannons 83 | . . 83 Explosions 191 | . . 191 Melee . | . . . Ramming . | . . . Kinetic 345 | . 58 287 Thermal 376 | . 38 338 Explosive 191 | . . 191 Electromagnetic . | . . . Impact . | . . . Slashing . | . . . Piercing . | . . . Highest Corruption . | . . . Average Corruption . | . . . Corruption Purged . | . . . Corruption Blocked . | . . . Overload Shots . | . . . Overflow Damage . | . . . Projectiles . | . . . Explosions . | . . . Melee . | . . . Knockbacks . | . . . Impact . | . . . Kinetic . | . . . Secondary . | . . . Self-Inflicted Damage 141 | . . 141 Shots 10 | . . 10 Rammed . | . . . Targets Rammed . | . . . Kicked . | . . . Crushed . | . . . Highest Temperature 27 | . 27 12 Average Temperature 11 | . 14 6 Received Heat Transfer 54 | . . 54 Siege Activations . | . . . Martial Activations . | . . . Shielding Activations . | . . . Robots Disrupted . | . . . Combat Hostiles . | . . . Robots Corrupted . | . . . Combat Hostiles . | . . . Parts Fried . | . . . Impact Corruptions . | . . . Robots Melted . | . . . Combat Hostiles . | . . . Parts Melted 1 | . . 1 Heat Transferred 1510 | . 185 1325 Parts Sabotaged . | . . . Parts Stolen . | . . . Parts Stripped . | . . . Power Chain Reactions . | . . . Alert | -11 -10 -10 ------- Run | Yrd Mat Sub Maximum Alert Level . | . . . Low Security (%) 100 | 100 100 . Level 1 . | . . . Level 2 . | . . . Level 3 . | . . . Level 4 . | . . . Level 5 . | . . . High Security . | . . . Max Security . | . . . Peak Influence 12 | . 12 . Initial . | . . . Average 1 | . 2 . Influence Increases 25 | . 25 . Successful Hack 25 | . 25 . Influence Decreases 25 | . 25 . Time Decay 25 | . 25 . Squads Dispatched 1 | . 1 . Investigation . | . . . Extermination . | . . . Reinforcement 1 | . 1 . Assault . | . . . Garrison . | . . . Intercept . | . . . Searches Triggered . | . . . Construction Impeded . | . . . Haulers Reinforced . | . . . Active Scanning Responses . | . . . Cargo Convoy Interrupts . | . . . Stealth | -11 -10 -10 --------- Run | Yrd Mat Sub Distress Signals . | . . . Communications Jammed . | . . . Distress Signals . | . . . Times Spotted 12 | . 3 9 Peak Tracking Total 2 | . 2 2 Tactical Retreats . | . . . Traps | -11 -10 -10 ------- Run | Yrd Mat Sub Traps Triggered . | . . . Indirectly . | . . . Trap Hack Attempts . | . . . Triggered . | . . . Disarmed . | . . . Reprogrammed . | . . . Reused . | . . . Traps Extracted . | . . . Installed . | . . . Triggered . | . . . Machines | -11 -10 -10 ---------- Run | Yrd Mat Sub Machines Disabled 1 | . . 1 Max in Single Turn 1 | . . 1 Machines Repaired . | . . . Machines Dismantled . | . . . Machines Sabotaged . | . . . Overloaded Fab Kills . | . . . Hacking | -11 -10 -10 --------- Run | Yrd Mat Sub Machines Accessed 5 | . 4 1 Terminals 4 | . 4 . Fabricators . | . . . Repair Stations . | . . . Recycling Units . | . . . Scanalyzers . | . . . Garrison Access . | . . . Total Hacks 9 | . 8 1 Successful 7 | . 6 1 Failed 2 | . 2 . Catastrophic . | . . . Database Lockouts . | . . . Manual 6 | . 6 . Terminals 8 | . 8 . Fabricators . | . . . Repair Stations . | . . . Recycling Units . | . . . Scanalyzers . | . . . Garrison Access . | . . . Terminal Hacks 4 | . 3 1 Robot Analysis 2 | . 2 . Zone Layout 1 | . 1 . Proto ID Catalog 1 | . . 1 Fabricator Hacks . | . . . Repair Station Hacks . | . . . Recycling Unit Hacks . | . . . Scanalyzer . | . . . Garrison Access Hacks . | . . . Unauthorized Hacks 3 | . 3 . Terminals 3 | . 3 . Botnet 3 | . 3 . Fabricators . | . . . Repair Stations . | . . . Recycling Units . | . . . Scanalyzers . | . . . Garrison Access . | . . . Data Cores Recovered . | . . . Used . | . . . Hacking Detections 2 | . 2 . Full Trace Events . | . . . Feedback Events . | . . . Feedback Blocked . | . . . Robot Schematics Acquired . | . . . Robots Built . | . . . Authchips . | . . . Time . | . . . Total Robot Build Rating . | . . . Part Schematics Acquired . | . . . Parts Built . | . . . Authchips . | . . . Time . | . . . Total Part Build Rating . | . . . Parts Repaired . | . . . Time . | . . . Parts Recycled . | . . . Recycled Matter . | . . . Retrieved Matter . | . . . Retrieved Components . | . . . Parts Scanalyzed . | . . . Part Schematics Acquired . | . . . Parts Damaged . | . . . Bothacking | -11 -10 -10 ------------ Run | Yrd Mat Sub Used RIF Installer . | . . . Robots Hacked . | . . . Non-combat . | . . . Combat . | . . . Robot Hacks Applied . | . . . Relay Couplers Released . | . . . Fabnet Peak Effective % . | . . . Robots Rewired . | . . . Allies Hacked . | . . . Hacks Repelled . | . . . Allies | -11 -10 -10 -------- Run | Yrd Mat Sub Total Allies . | . . . Largest Group . | . . . Highest-Rated Group . | . . . Highest-Rated Ally . | . . . Total Orders . | . . . Ally Attacks . | . . . Total Damage . | . . . Kills . | . . . Allies Corrupted . | . . . Allies Melted . | . . . Intel | -11 -10 -10 ------- Run | Yrd Mat Sub Active Infowar (turns) . | . . . Robot Analysis Total 2 | . 2 . Derelict Logs Recovered 1 | . . 1 Drone Launches . | . . . Drone Recoveries . | . . . Exploration | -11 -10 -10 ------------- Run | Yrd Mat Sub Turns Passed 2098 | 96 127 1875 Spaces Moved 1142 | 48 67 1027 Core 18 | 16 . 2 Treads 1124 | 32 67 1025 Legs . | . . . Wheels . | . . . Hover . | . . . Flight . | . . . Fastest Speed 50 | 50 160 50 Average Speed 160 | 169 160 159 Slowest Speed 250 | 250 160 160 Overloaded Moves . | . . . Propulsion Burnouts . | . . . Robots Hopped . | . . . Potential Cave-ins . | . . . Cave-ins Triggered . | . . . Exploration Rate (%) 27 | 6 12 63 Regions Visited 2 Branch Regions 1 Pre-discovered Areas . | . . . Known Exits Taken . | . . . Unknown Exits Taken 2 | 1 1 . Scrap Searched 5 | . . 5 Spaces Dug 33 | . . 33 Terrain Destroyed 93 | . . 93 Melee . | . . . Projectile 8 | . . 8 AOE 85 | . . 85 Terrain Rammed . | . . . Walls Destroyed . | . . . Machines Disabled . | . . . Actions | -11 -10 -10 --------- Run | Yrd Mat Sub Total 1287 | 63 75 1149 Wait 14 | . 2 12 Move 1140 | 47 66 1027 Hop . | . . . Pick Up 23 | 10 1 12 Fast Attach . | . . . Attach 11 | 6 . 5 Detach . | . . . Swap 7 | . . 7 Drop 8 | . . 8 Fire 84 | . 6 78 Melee . | . . . Ram . | . . . Kick . | . . . Crush . | . . . Escape Stasis . | . . . Rewire . | . . . Trap . | . . . Miscellaneous . | . . . Route ------- -11/Scrapyard -10/Materials -10/Subcaves (discovered 3 exits: [*Mat x2] / [*Scr]) History --------- Turn | Location | Event 33 | -11/Scrapyard | Discovered new exit (range 15) 97 | -11/Scrapyard | Entered Materials 208 | -10/Materials | Discovered new exit (range 6) 224 | -10/Materials | Entered Subcaves 225 | -10/Subcaves | Approached by a straggling Scientist 307 | -10/Subcaves | Build established: Mutant 327 | -10/Subcaves | Shifting Twisted Machinery released Sub. Beam Cannon 327 | -10/Subcaves | Discovered new exit (range 10) 329 | -10/Subcaves | Shifting Twisted Machinery released Flamer 536 | -10/Subcaves | A swath of the cavern ceiling suddenly collapsed 793 | -10/Subcaves | Ambushed by Subdweller buried in earth 850 | -10/Subcaves | Ambushed by angry Subdweller bent on revenge 970 | -10/Subcaves | Scientist uncovered a shortcut to Scraptown 1176 | -10/Subcaves | Learned location of 1 exit from Materials 1237 | -10/Subcaves | Discovered new exit (range 9) 1810 | -10/Subcaves | Visited 4L-MR0's lab 1827 | -10/Subcaves | Found Tower Shield 2040 | -10/Subcaves | Ambushed by Subdwellers from Twisted Machinery 2074 | -10/Subcaves | Core integrity fell below 50% 2089 | -10/Subcaves | Core integrity fell below 20% 2098 | -10/Subcaves | Released all parts (2) 2099 | -10/Subcaves | Destroyed by FX-2JY(R) with Subdweller Machine Gun Last Messages --------------- Powered Cannon 01820_ Testing Chamber breached. 01826_ Dropped Sub. Power Source. 01827_ Dropped Sub. Laser. 01827_ Acquired Tower Shield. 01829_ 4L-MR0 mumbles to no one in particular: "Damn Subs sneaking around stealing my stuff." 02040_ FX-2JY(R) emerges from the Twisted Machinery. 02049_ FX-2JY(R) suffers critical hit (Burn). 02070_ Sub. Machine Gun shoots sparks and powers down. 02070_ Lgt. Ion Engine destroyed. 02079_ FX-2JY(R) suffers critical hit (Burn). 02081_ Mak. Power Source destroyed. 02086_ Flamer destroyed. 02095_ Lgt. Treads destroyed. 02097_ Med. Laser destroyed. 02098_ Released Sml. Storage Unit. 02098_ Released Lgt. Treads. Map ----- +----------------------------------------------------+ | ##???????????????????????????????????????????????? | | ?????????????????????????????????????????????????? | | ?????????????????????????????????????????????????? | | ?????????????????????????????????????????????????? | | ?????????????????????????????????????????????????? | | ?????????????????????????????????????????????????? | | ?????? ????????????????????????????????????????? | | ?????? ????????????? ???????????????????????? | | ?????? ???????????? ???????????????????????? | | ????? ?????????? ???????????????????????? | | ?????# #????????? ???????????????????????? | | ?????# ??????????? ???????????????????????? | | #????# ???????????? ???????????????????????? | | #???## ????????????? ???????????????????????? | | #?### ?????????????? #???????##?????????????? | | ### ????????###???? ##????## ### ??????????? | | ## #????????# ##???# ????# ??????????? | | #????????# #??## #??## ????????????? | | ? #?####??## #??# #### #?????????????? | | ### ## #??# #### ## ####??????????? | | # # ##??# ## # # """ ?????????? | | #??# """"" "????? | | ##??# """ "????? | | ## #?### # # " ""????? | | ####### #### ### """????? | | #????# #?# ### @ " ????? | | #????# ##?# ### = R ""????? | | ###??# ##?# ## ##!= R " ???? | | #### ### #### ### ## ## " ???? | | ## #??# ??## ##??##????? "????? | | ### # ##??# #???####?????????????????? | | ??## # #######???###?????????????????????????? | | ???# # ##?????????????????????????????????????? | | ???# ## ##??????????????????????????????????????? | | ???# #####???????????????????????????????????????? | | #?## #???????????????????????????????????????????? | | ### #???????????????????????????????????????????? | | #???????????????????????????????????????????? | | ######???????????????????????????????????????????? | | #????????????????????????????????????????????????? | | ?????????????????????????????????????????????????? | | ?????????????????????????????????????????????????? | | ?????????????????????????????????????????????????? | | ?????????????????????????????????????????????????? | | ?????????????????????????????????????????????????? | | ?????????????????????????????????????????????????? | | ?????????????????????????????????????????????????? | | ?????????????????????????????????????????????????? | | ?????????????????????????????????????????????????? | | ?????????????????????????????????????????????????? | +----------------------------------------------------+ Best States ------------- Heat Dissipation 25 Energy Generation 15 Energy Capacity 250 Matter Stores 300 Matter Capacity 300 Sight Range 16 Terrain Scan Density 10 Evasion (%) 40 Recoil Reduction 2 Item Schematics ----------------- None Robot Schematics ------------------ None Fabricated ------------ Nothing Repaired ---------- Nothing Alien Tech Used ----------------- None Achievements -------------- None Challenges ------------ None Game ------ Seed CommPointRegenerator Manual? 0 Play Time 00:16:21 Cumulative 300.6 hours Start 2025.05.29 @ 04:15:17 End 2025.05.29 @ 04:27:16 Sessions 1 Manual Loads 0 Difficulty Rogue Special Mode None Game No. 230 Rogue 221 Adventurer 9 Explorer 0 Win Type - Total 3 Types 2/0/0/1/0/0/0/0/0/0 Lore% 86 Gallery% 75 Achievement% 67 Wizard Run 0 Options --------- Layout 1 ASCII 0 Keyboard 0 Movement Numpad Keybinds 0 Fullscreen 1 Font 24/Smallcaps Map View 50x35 Zoom Use 0% Tactical HUD 1 Map Filters NONE Filters NONE Steam 1 RUN: d9ee0776-20da-43b6-875f-d34fea0bcd38